[Event "Early-Titled-Tuesday-Blitz-February-06-2024"]
[Site "Chess.com"]
[Date "2024.02.06"]
[Round "6"]
[White "ri4mi"]
[Black "DarkAlekhine"]
[Result "1/2-1/2"]
[WhiteElo "2559"]
[BlackElo "2740"]
[TimeControl "180+1"]
[EndTime "9:09:27 PST"]
[Termination "Game drawn - insufficient material"]

1. e4 {[%clk 0:02:58.2]} 1... c5 {[%clk 0:02:59.3]} 2. Nc3 {[%clk 0:02:57.8]}
2... d6 {[%clk 0:02:58.7]} 3. d4 {[%clk 0:02:57.6]} 3... cxd4 {[%clk 0:02:58.4]}
4. Qxd4 {[%clk 0:02:58.5]} 4... Nc6 {[%clk 0:02:57.6]} 5. Qd2 {[%clk 0:02:59.1]}
5... g6 {[%clk 0:02:57.1]} 6. b3 {[%clk 0:02:59.4]} 6... Bh6 {[%clk 0:02:56.8]}
7. f4 {[%clk 0:03:00]} 7... Nf6 {[%clk 0:02:56]} 8. Bb2 {[%clk 0:03:00.1]} 8...
e5 {[%clk 0:02:55.9]} 9. g3 {[%clk 0:02:59.2]} 9... O-O {[%clk 0:02:56.2]} 10.
O-O-O {[%clk 0:02:59]} 10... Bg4 {[%clk 0:02:56.9]} 11. Be2 {[%clk 0:02:55.1]}
11... Bxe2 {[%clk 0:02:55]} 12. Ngxe2 {[%clk 0:02:56]} 12... Rc8 {[%clk
0:02:54.4]} 13. Kb1 {[%clk 0:02:54.9]} 13... b5 {[%clk 0:01:33.5]} 14. Qxd6
{[%clk 0:02:51.8]} 14... b4 {[%clk 0:01:32.3]} 15. Qxd8 {[%clk 0:02:47.9]} 15...
Rfxd8 {[%clk 0:01:33.2]} 16. Nd5 {[%clk 0:02:33.7]} 16... Nxe4 {[%clk
0:01:32.7]} 17. Rhf1 {[%clk 0:02:26.1]} 17... f5 {[%clk 0:01:28.7]} 18. Rd3
{[%clk 0:01:53.7]} 18... Kf7 {[%clk 0:01:27.2]} 19. g4 {[%clk 0:01:28.1]} 19...
Ke6 {[%clk 0:01:06.2]} 20. g5 {[%clk 0:00:27.9]} 20... Bxg5 {[%clk 0:00:46.2]}
21. fxg5 {[%clk 0:00:21.7]} 21... Rxd5 {[%clk 0:00:45.9]} 22. Rxd5 {[%clk
0:00:21.5]} 22... Kxd5 {[%clk 0:00:46.8]} 23. Rd1+ {[%clk 0:00:20.7]} 23... Ke6
{[%clk 0:00:47.1]} 24. h4 {[%clk 0:00:20.7]} 24... Rd8 {[%clk 0:00:44.3]} 25.
Rxd8 {[%clk 0:00:20]} 25... Nxd8 {[%clk 0:00:45.2]} 26. Nc1 {[%clk 0:00:16.7]}
26... Nd2+ {[%clk 0:00:41.8]} 27. Ka1 {[%clk 0:00:16.5]} 27... Nc6 {[%clk
0:00:41.1]} 28. Nd3 {[%clk 0:00:16.7]} 28... Kd5 {[%clk 0:00:39.5]} 29. a3
{[%clk 0:00:15.9]} 29... a5 {[%clk 0:00:39.7]} 30. axb4 {[%clk 0:00:15.8]} 30...
axb4 {[%clk 0:00:40.6]} 31. Ka2 {[%clk 0:00:14.7]} 31... f4 {[%clk 0:00:40.5]}
32. Bc1 {[%clk 0:00:13.4]} 32... Ne4 {[%clk 0:00:39.9]} 33. Bxf4 {[%clk
0:00:11.6]} 33... exf4 {[%clk 0:00:39.3]} 34. Nxf4+ {[%clk 0:00:12.5]} 34... Ke5
{[%clk 0:00:38.7]} 35. Nd3+ {[%clk 0:00:12.2]} 35... Kd4 {[%clk 0:00:39.2]} 36.
Kb2 {[%clk 0:00:10]} 36... Nc5 {[%clk 0:00:34.1]} 37. Nf4 {[%clk 0:00:09]} 37...
Ne5 {[%clk 0:00:31.9]} 38. h5 {[%clk 0:00:08.3]} 38... Ke3 {[%clk 0:00:30.4]}
39. hxg6 {[%clk 0:00:08]} 39... hxg6 {[%clk 0:00:28.6]} 40. Nd5+ {[%clk
0:00:08.1]} 40... Ke4 {[%clk 0:00:28.5]} 41. Nxb4 {[%clk 0:00:09]} 41... Kf5
{[%clk 0:00:28.1]} 42. Nd5 {[%clk 0:00:07.8]} 42... Kxg5 {[%clk 0:00:27.9]} 43.
b4 {[%clk 0:00:08.3]} 43... Ncd7 {[%clk 0:00:27.7]} 44. Kb3 {[%clk 0:00:07]}
44... Kf5 {[%clk 0:00:26.8]} 45. Ne7+ {[%clk 0:00:07]} 45... Ke6 {[%clk
0:00:25.5]} 46. Nxg6 {[%clk 0:00:07.9]} 46... Nxg6 {[%clk 0:00:26.1]} 47. c4
{[%clk 0:00:08.8]} 47... Kd6 {[%clk 0:00:26.4]} 48. c5+ {[%clk 0:00:08.9]} 48...
Kc6 {[%clk 0:00:25.5]} 49. Kc4 {[%clk 0:00:09]} 49... Nge5+ {[%clk 0:00:25]} 50.
Kd4 {[%clk 0:00:09.6]} 50... Kb5 {[%clk 0:00:24.8]} 51. Kd5 {[%clk 0:00:09.3]}
51... Nc6 {[%clk 0:00:25]} 52. Kd6 {[%clk 0:00:08.6]} 52... Ndb8 {[%clk
0:00:25]} 53. Kc7 {[%clk 0:00:09]} 53... Na6+ {[%clk 0:00:23.1]} 54. Kd6 {[%clk
0:00:09.2]} 54... Na7 {[%clk 0:00:22.9]} 55. Kd5 {[%clk 0:00:08.6]} 55... Nc6
{[%clk 0:00:22.8]} 56. Kd6 {[%clk 0:00:08.9]} 56... Nab8 {[%clk 0:00:22.9]} 57.
Kd5 {[%clk 0:00:09]} 57... Nd7 {[%clk 0:00:22.6]} 58. Kd6 {[%clk 0:00:09.9]}
58... Nde5 {[%clk 0:00:22.7]} 59. Kd5 {[%clk 0:00:10.8]} 59... Nc4 {[%clk
0:00:23.2]} 60. Ke6 {[%clk 0:00:10.7]} 60... Nd4+ {[%clk 0:00:22.8]} 61. Kd5
{[%clk 0:00:11]} 61... Nf5 {[%clk 0:00:20.3]} 62. c6 {[%clk 0:00:10.8]} 62...
Ne7+ {[%clk 0:00:20.4]} 63. Ke6 {[%clk 0:00:11.2]} 63... Nxc6 {[%clk 0:00:21.3]}
64. Kd5 {[%clk 0:00:11.6]} 64... Na7 {[%clk 0:00:21]} 65. Ke6 {[%clk 0:00:12.1]}
65... Nb6 {[%clk 0:00:19.4]} 66. Ke5 {[%clk 0:00:12.1]} 66... Na8 {[%clk
0:00:20]} 67. Kd4 {[%clk 0:00:12.5]} 67... Nc7 {[%clk 0:00:20.1]} 68. Ke5 {[%clk
0:00:13]} 68... Nc6+ {[%clk 0:00:19.2]} 69. Kd6 {[%clk 0:00:13.1]} 69... Ne8+
{[%clk 0:00:19.8]} 70. Kd5 {[%clk 0:00:13.2]} 70... Ng7 {[%clk 0:00:20.7]} 71.
Kd6 {[%clk 0:00:13.5]} 71... Nh5 {[%clk 0:00:21.6]} 72. Kd5 {[%clk 0:00:14]}
72... Ng3 {[%clk 0:00:22.5]} 73. Kd6 {[%clk 0:00:14.6]} 73... Ne2 {[%clk
0:00:23.4]} 74. Kd5 {[%clk 0:00:15.3]} 74... Nc3+ {[%clk 0:00:23.8]} 75. Kd6
{[%clk 0:00:16]} 75... Kb6 {[%clk 0:00:24.3]} 76. b5 {[%clk 0:00:15.6]} 76...
Nb4 {[%clk 0:00:24.3]} 77. Ke5 {[%clk 0:00:15.4]} 77... Na4 {[%clk 0:00:24.2]}
78. Kd4 {[%clk 0:00:15.7]} 78... Na2 {[%clk 0:00:22.6]} 79. Kc4 {[%clk 0:00:16]}
79... N4c3 {[%clk 0:00:23]} 80. Kb3 {[%clk 0:00:15.2]} 80... Kxb5 {[%clk
0:00:18.1]} 1/2-1/2

[Event "Early-Titled-Tuesday-Blitz-February-06-2024"]
[Site "Chess.com"]
[Date "2024.02.06"]
[Round "6"]
[White "Talent-OF-Slovenia"]
[Black "FoxOnTheRun97"]
[Result "1-0"]
[WhiteElo "2470"]
[BlackElo "2635"]
[TimeControl "180+1"]
[EndTime "9:09:27 PST"]
[Termination "Talent-OF-Slovenia won by checkmate"]

1. e4 {[%clk 0:03:00.9]} 1... c6 {[%clk 0:03:00.1]} 2. d4 {[%clk 0:03:00.6]}
2... d5 {[%clk 0:03:00.7]} 3. exd5 {[%clk 0:03:01.5]} 3... cxd5 {[%clk
0:03:01.6]} 4. Bd3 {[%clk 0:03:02.1]} 4... Nc6 {[%clk 0:03:01.2]} 5. c3 {[%clk
0:03:02.4]} 5... Qc7 {[%clk 0:02:58.8]} 6. h3 {[%clk 0:03:00.1]} 6... e6 {[%clk
0:02:53]} 7. Nf3 {[%clk 0:02:59.6]} 7... Bd6 {[%clk 0:02:52.7]} 8. O-O {[%clk
0:02:59.7]} 8... Nge7 {[%clk 0:02:50.1]} 9. Re1 {[%clk 0:02:59.8]} 9... Ng6
{[%clk 0:02:49.4]} 10. a4 {[%clk 0:02:57.7]} 10... O-O {[%clk 0:02:48.3]} 11.
Na3 {[%clk 0:02:55.7]} 11... a6 {[%clk 0:02:47.9]} 12. Nc2 {[%clk 0:02:55.4]}
12... Na5 {[%clk 0:02:46.7]} 13. Ne3 {[%clk 0:02:52.2]} 13... Nc4 {[%clk
0:02:44]} 14. Nxc4 {[%clk 0:02:46.6]} 14... dxc4 {[%clk 0:02:44.9]} 15. Bc2
{[%clk 0:02:46.9]} 15... b6 {[%clk 0:02:41.3]} 16. Qe2 {[%clk 0:02:46]} 16...
Bb7 {[%clk 0:02:39.4]} 17. Ne5 {[%clk 0:02:43.9]} 17... Bxe5 {[%clk 0:02:31.5]}
18. dxe5 {[%clk 0:02:44.8]} 18... b5 {[%clk 0:02:30.7]} 19. axb5 {[%clk
0:02:18.9]} 19... axb5 {[%clk 0:02:31.6]} 20. Rxa8 {[%clk 0:02:18.9]} 20... Rxa8
{[%clk 0:02:29.9]} 21. Bg5 {[%clk 0:02:13.8]} 21... Qc6 {[%clk 0:02:24]} 22. f3
{[%clk 0:02:12.6]} 22... Qc5+ {[%clk 0:02:16]} 23. Kh2 {[%clk 0:02:11.7]} 23...
Ra2 {[%clk 0:02:13.8]} 24. Bc1 {[%clk 0:02:10]} 24... Ra8 {[%clk 0:02:05.9]} 25.
Kg3 {[%clk 0:01:57.5]} 25... Rd8 {[%clk 0:02:01.6]} 26. h4 {[%clk 0:01:56.9]}
26... Rd5 {[%clk 0:01:48.6]} 27. Bxg6 {[%clk 0:01:55.4]} 27... hxg6 {[%clk
0:01:47.4]} 28. Be3 {[%clk 0:01:55.5]} 28... Qc7 {[%clk 0:01:43.7]} 29. Bd4
{[%clk 0:01:54.6]} 29... b4 {[%clk 0:01:30.8]} 30. Kh3 {[%clk 0:01:54.5]} 30...
bxc3 {[%clk 0:01:19]} 31. bxc3 {[%clk 0:01:55.4]} 31... Kh7 {[%clk 0:01:18.5]}
32. Ra1 {[%clk 0:01:54]} 32... Rb5 {[%clk 0:01:17.1]} 33. Qc2 {[%clk 0:01:47.8]}
33... Bd5 {[%clk 0:00:39.1]} 34. h5 {[%clk 0:01:46.1]} 34... Qb8 {[%clk
0:00:38.6]} 35. hxg6+ {[%clk 0:01:43.5]} 35... fxg6 {[%clk 0:00:39.5]} 36. Qd2
{[%clk 0:01:37.8]} 36... Rb1 {[%clk 0:00:34.7]} 37. Rxb1 {[%clk 0:01:33.3]}
37... Qxb1 {[%clk 0:00:35.6]} 38. Kg3 {[%clk 0:01:33.5]} 38... Qf5 {[%clk
0:00:31.6]} 39. Qc1 {[%clk 0:01:26.3]} 39... g5 {[%clk 0:00:30.4]} 40. Qe3
{[%clk 0:01:25.8]} 40... Kg6 {[%clk 0:00:30.4]} 41. Bc5 {[%clk 0:01:25.6]} 41...
Qf7 {[%clk 0:00:29.5]} 42. Bd6 {[%clk 0:01:24.6]} 42... Qe8 {[%clk 0:00:28.3]}
43. Kf2 {[%clk 0:01:19.9]} 43... Qa8 {[%clk 0:00:27.4]} 44. Qd2 {[%clk
0:01:17.8]} 44... Qa1 {[%clk 0:00:24.1]} 45. Qc2+ {[%clk 0:01:17.1]} 45... Kf7
{[%clk 0:00:24.1]} 46. Qd2 {[%clk 0:01:13.8]} 46... Kg6 {[%clk 0:00:21.7]} 47.
Be7 {[%clk 0:01:12.8]} 47... g4 {[%clk 0:00:19.7]} 48. fxg4 {[%clk 0:01:08.3]}
48... Qh1 {[%clk 0:00:19.1]} 49. Kg3 {[%clk 0:01:08.9]} 49... Kf7 {[%clk
0:00:18.6]} 50. Bh4 {[%clk 0:01:07.5]} 50... Qg1 {[%clk 0:00:17.3]} 51. Qf4+
{[%clk 0:01:06.9]} 51... Kg8 {[%clk 0:00:16.7]} 52. Qd2 {[%clk 0:01:05.9]} 52...
Qf1 {[%clk 0:00:16]} 53. Be7 {[%clk 0:01:04.5]} 53... Kf7 {[%clk 0:00:16]} 54.
Bc5 {[%clk 0:01:02.8]} 54... Qh1 {[%clk 0:00:15.5]} 55. Qf2+ {[%clk 0:01:02]}
55... Kg6 {[%clk 0:00:14.7]} 56. Bf8 {[%clk 0:00:57.1]} 56... Kh7 {[%clk
0:00:13.1]} 57. Be7 {[%clk 0:00:51.7]} 57... Kg8 {[%clk 0:00:12.6]} 58. g5
{[%clk 0:00:48.2]} 58... Kh7 {[%clk 0:00:12.4]} 59. Qc2+ {[%clk 0:00:48.1]}
59... Kg8 {[%clk 0:00:11.8]} 60. Qd2 {[%clk 0:00:43.8]} 60... Qf1 {[%clk
0:00:09]} 61. Bd6 {[%clk 0:00:31.9]} 61... Qh1 {[%clk 0:00:06.9]} 62. Qf2 {[%clk
0:00:27.5]} 62... Kh7 {[%clk 0:00:05.4]} 63. Qc2+ {[%clk 0:00:27.2]} 63... Kg8
{[%clk 0:00:05.4]} 64. g6 {[%clk 0:00:27.8]} 64... Qh5 {[%clk 0:00:04.9]} 65.
Kf2 {[%clk 0:00:25.3]} 65... Qg4 {[%clk 0:00:04.1]} 66. Kg1 {[%clk 0:00:25.5]}
66... Be4 {[%clk 0:00:03.3]} 67. Qf2 {[%clk 0:00:24.9]} 67... Qxg6 {[%clk
0:00:03.8]} 68. Bc5 {[%clk 0:00:22.5]} 68... Kh7 {[%clk 0:00:04.7]} 69. Bd4
{[%clk 0:00:22.9]} 69... Bd5 {[%clk 0:00:04.8]} 70. Qh4+ {[%clk 0:00:23.1]}
70... Qh6 {[%clk 0:00:05]} 71. Qf2 {[%clk 0:00:23.1]} 71... Qh5 {[%clk
0:00:05.1]} 72. Qc2+ {[%clk 0:00:21.7]} 72... Qg6 {[%clk 0:00:05.1]} 73. Qe2
{[%clk 0:00:21.6]} 73... Qg5 {[%clk 0:00:05.4]} 74. Qf2 {[%clk 0:00:20.6]} 74...
Qg4 {[%clk 0:00:05.6]} 75. Qd2 {[%clk 0:00:20.1]} 75... Kg6 {[%clk 0:00:06.1]}
76. Qf2 {[%clk 0:00:20.4]} 76... Qf5 {[%clk 0:00:05.9]} 77. Qg3+ {[%clk
0:00:20.7]} 77... Kf7 {[%clk 0:00:06.5]} 78. Kh2 {[%clk 0:00:20.6]} 78... Qe4
{[%clk 0:00:06.9]} 79. Qg5 {[%clk 0:00:19.8]} 79... Kf8 {[%clk 0:00:06.8]} 80.
Bc5+ {[%clk 0:00:20]} 80... Kf7 {[%clk 0:00:07.1]} 81. Qe7+ {[%clk 0:00:20]}
81... Kg6 {[%clk 0:00:07.5]} 82. Qe8+ {[%clk 0:00:18.6]} 82... Kh6 {[%clk
0:00:07.2]} 83. Qh8+ {[%clk 0:00:18.7]} 83... Kg6 {[%clk 0:00:07.6]} 84. Qe8+
{[%clk 0:00:19]} 84... Kg5 {[%clk 0:00:07.1]} 85. Qe7+ {[%clk 0:00:17]} 85...
Kf4 {[%clk 0:00:07]} 86. Qh4+ {[%clk 0:00:16.1]} 86... Kf5 {[%clk 0:00:06.6]}
87. Qh5+ {[%clk 0:00:16.1]} 87... Kf4 {[%clk 0:00:06.5]} 88. g3# {[%clk
0:00:15]} 1-0

[Event "Early-Titled-Tuesday-Blitz-February-06-2024"]
[Site "Chess.com"]
[Date "2024.02.06"]
[Round "6"]
[White "GustavoAOliveira"]
[Black "malakismayil"]
[Result "0-1"]
[WhiteElo "2338"]
[BlackElo "2498"]
[TimeControl "180+1"]
[EndTime "9:09:44 PST"]
[Termination "malakismayil won on time"]

1. d4 {[%clk 0:03:00.9]} 1... d5 {[%clk 0:02:55.1]} 2. c4 {[%clk 0:03:00.5]}
2... e6 {[%clk 0:02:54.3]} 3. Nf3 {[%clk 0:02:58.1]} 3... Nf6 {[%clk 0:02:53]}
4. g3 {[%clk 0:02:58.4]} 4... Be7 {[%clk 0:02:38.3]} 5. Bg2 {[%clk 0:02:58.1]}
5... O-O {[%clk 0:02:38.8]} 6. O-O {[%clk 0:02:57.3]} 6... dxc4 {[%clk
0:02:39.3]} 7. Na3 {[%clk 0:02:57.1]} 7... Bxa3 {[%clk 0:02:35.1]} 8. bxa3
{[%clk 0:02:58]} 8... c5 {[%clk 0:02:35.5]} 9. dxc5 {[%clk 0:02:54.1]} 9... Qc7
{[%clk 0:02:35]} 10. Be3 {[%clk 0:02:48.7]} 10... Nbd7 {[%clk 0:02:25.8]} 11.
Qc2 {[%clk 0:02:37.1]} 11... Nd5 {[%clk 0:02:23.2]} 12. Bd4 {[%clk 0:02:31.4]}
12... Nxc5 {[%clk 0:01:59]} 13. Qxc4 {[%clk 0:02:25.2]} 13... Na6 {[%clk
0:01:57.9]} 14. Qxc7 {[%clk 0:02:19.2]} 14... Naxc7 {[%clk 0:01:58.8]} 15. Rfc1
{[%clk 0:02:13.4]} 15... Nb5 {[%clk 0:01:55.1]} 16. Bc5 {[%clk 0:02:11.8]} 16...
Re8 {[%clk 0:01:48.6]} 17. e4 {[%clk 0:01:59.4]} 17... Ndc3 {[%clk 0:01:19.5]}
18. Re1 {[%clk 0:01:19.6]} 18... Bd7 {[%clk 0:01:05]} 19. Ne5 {[%clk 0:01:13.9]}
19... Bc6 {[%clk 0:00:59.8]} 20. Nxc6 {[%clk 0:01:12.9]} 20... bxc6 {[%clk
0:01:00.7]} 21. e5 {[%clk 0:01:03.9]} 21... Nd5 {[%clk 0:00:59.6]} 22. Rac1
{[%clk 0:00:56.2]} 22... Rec8 {[%clk 0:00:50.4]} 23. Rc2 {[%clk 0:00:48.9]}
23... a5 {[%clk 0:00:23.3]} 24. Rec1 {[%clk 0:00:32]} 24... h5 {[%clk
0:00:18.3]} 25. a4 {[%clk 0:00:29.6]} 25... Nbc7 {[%clk 0:00:05.6]} 26. Bd6
{[%clk 0:00:29.3]} 26... Na6 {[%clk 0:00:03.6]} 27. Rxc6 {[%clk 0:00:26.5]}
27... Rd8 {[%clk 0:00:04.2]} 28. Bxd5 {[%clk 0:00:19.8]} 28... exd5 {[%clk
0:00:05.1]} 29. Rb1 {[%clk 0:00:16.8]} 29... Rd7 {[%clk 0:00:04]} 30. Rb5 {[%clk
0:00:15.5]} 30... d4 {[%clk 0:00:03.1]} 31. Kg2 {[%clk 0:00:13.9]} 31... Nb4
{[%clk 0:00:01.2]} 32. Bxb4 {[%clk 0:00:13.1]} 32... axb4 {[%clk 0:00:02.1]} 33.
Rxb4 {[%clk 0:00:13.7]} 33... Rd5 {[%clk 0:00:02.8]} 34. Rc1 {[%clk 0:00:12.2]}
34... d3 {[%clk 0:00:02.4]} 35. Rd1 {[%clk 0:00:12.5]} 35... Rad8 {[%clk
0:00:02.6]} 36. f4 {[%clk 0:00:12.2]} 36... d2 {[%clk 0:00:03]} 37. Rb2 {[%clk
0:00:12.1]} 37... Rd4 {[%clk 0:00:02.9]} 38. a5 {[%clk 0:00:12.3]} 38... R8d5
{[%clk 0:00:02.5]} 39. a6 {[%clk 0:00:11.9]} 39... Ra4 {[%clk 0:00:02.2]} 40.
Rbxd2 {[%clk 0:00:11.9]} 40... Rda5 {[%clk 0:00:02.4]} 41. Rd8+ {[%clk
0:00:11.4]} 41... Kh7 {[%clk 0:00:02.7]} 42. R8d7 {[%clk 0:00:11.9]} 42... Rxa2+
{[%clk 0:00:02.7]} 43. R1d2 {[%clk 0:00:12.5]} 43... Rxa6 {[%clk 0:00:01.9]} 44.
Rxa2 {[%clk 0:00:11.7]} 44... Rxa2+ {[%clk 0:00:02.8]} 45. Kh3 {[%clk
0:00:12.5]} 45... Kg6 {[%clk 0:00:03]} 46. Rd6+ {[%clk 0:00:12.8]} 46... Kh7
{[%clk 0:00:03.1]} 47. Rc6 {[%clk 0:00:13]} 47... g6 {[%clk 0:00:02.9]} 48. Rc7
{[%clk 0:00:12.6]} 48... Kg8 {[%clk 0:00:03.4]} 49. Rc8+ {[%clk 0:00:12.8]}
49... Kg7 {[%clk 0:00:03.7]} 50. Rc7 {[%clk 0:00:13.7]} 50... Kg8 {[%clk
0:00:04.2]} 51. Rb7 {[%clk 0:00:14.4]} 51... Rc2 {[%clk 0:00:03.6]} 52. e6
{[%clk 0:00:12.5]} 52... fxe6 {[%clk 0:00:03.4]} 53. Re7 {[%clk 0:00:13.4]}
53... Re2 {[%clk 0:00:02.8]} 54. Re8+ {[%clk 0:00:12.2]} 54... Kf7 {[%clk
0:00:03.2]} 55. Ra8 {[%clk 0:00:12.7]} 55... Kf6 {[%clk 0:00:03.8]} 56. Ra7
{[%clk 0:00:13.6]} 56... Kf5 {[%clk 0:00:03.5]} 57. Ra5+ {[%clk 0:00:13.6]}
57... Kf6 {[%clk 0:00:03.8]} 58. Rb5 {[%clk 0:00:12.7]} 58... Re1 {[%clk
0:00:03.6]} 59. Kg2 {[%clk 0:00:12]} 59... Re2+ {[%clk 0:00:04.1]} 60. Kg1
{[%clk 0:00:12.5]} 60... Ra2 {[%clk 0:00:03.8]} 61. Rc5 {[%clk 0:00:11.8]} 61...
Rd2 {[%clk 0:00:03.8]} 62. h3 {[%clk 0:00:11.6]} 62... Rd4 {[%clk 0:00:03.2]}
63. Kg2 {[%clk 0:00:11.7]} 63... h4 {[%clk 0:00:03.9]} 64. Kf3 {[%clk
0:00:08.8]} 64... Rd3+ {[%clk 0:00:03.5]} 65. Kg2 {[%clk 0:00:08.2]} 65... Rxg3+
{[%clk 0:00:02.9]} 66. Kh2 {[%clk 0:00:07.9]} 66... Rf3 {[%clk 0:00:03.5]} 67.
Rc4 {[%clk 0:00:07.9]} 67... Kf5 {[%clk 0:00:04.1]} 68. Kg2 {[%clk 0:00:07.6]}
68... Rxf4 {[%clk 0:00:04.2]} 69. Rc8 {[%clk 0:00:07.1]} 69... e5 {[%clk
0:00:04.2]} 70. Rh8 {[%clk 0:00:06.5]} 70... g5 {[%clk 0:00:04.1]} 71. Rf8+
{[%clk 0:00:06.3]} 71... Ke4 {[%clk 0:00:04.5]} 72. Re8 {[%clk 0:00:07.2]} 72...
g4 {[%clk 0:00:04.1]} 73. hxg4 {[%clk 0:00:06]} 73... Rxg4+ {[%clk 0:00:05]} 74.
Kh3 {[%clk 0:00:06.7]} 74... Rf4 {[%clk 0:00:05.9]} 75. Rd8 {[%clk 0:00:05.5]}
75... Ke3 {[%clk 0:00:05.9]} 76. Re8 {[%clk 0:00:06]} 76... e4 {[%clk
0:00:06.2]} 77. Kg2 {[%clk 0:00:06.2]} 77... Rf2+ {[%clk 0:00:05.4]} 78. Kg1
{[%clk 0:00:06.5]} 78... Rf3 {[%clk 0:00:05.1]} 79. Kg2 {[%clk 0:00:06.8]} 79...
h3+ {[%clk 0:00:05.5]} 80. Kg1 {[%clk 0:00:06.3]} 80... Kd3 {[%clk 0:00:05.5]}
81. Rd8+ {[%clk 0:00:06]} 81... Ke2 {[%clk 0:00:05.7]} 82. Re8 {[%clk
0:00:06.5]} 82... e3 {[%clk 0:00:06.2]} 83. Rd8 {[%clk 0:00:04.4]} 83... Rg3+
{[%clk 0:00:05.5]} 84. Kh2 {[%clk 0:00:04.6]} 84... Kf2 {[%clk 0:00:05.4]} 85.
Re8 {[%clk 0:00:04.4]} 85... Rf3 {[%clk 0:00:04.5]} 86. Re7 {[%clk 0:00:02.5]}
86... e2 {[%clk 0:00:04.7]} 0-1